fUST/lending_fUST_20240411
["ID","MTS","AMOUNT","RATE_DAILY","PERIOD"]
[322124918,1712818246896,-500.0,0.00041095,21]
[322124919,1712818246905,-500.0,0.00041095,21]
[322124920,1712818246915,-500.0,0.00041095,21]
[322124921,1712818246924,-500.0,0.00041095,21]
[322124922,1712818246934,-500.0,0.00041095,21]
[322124923,1712818246943,-500.0,0.00041095,21]
[322124924,1712818246953,-501.54645606,0.00041095,21]
[322124925,1712818246962,-500.0,0.00041095,21]
[322124926,1712818246972,-500.0,0.00041095,21]
[322124927,1712818246981,-501.17953853,0.00041095,21]
[322124928,1712818246990,-500.0,0.00041095,21]
[322124929,1712818246999,-514.03936812,0.00041095,21]
[322124930,1712818247009,-212.54286541,0.00041095,21]
[322124931,1712818247018,-500.0,0.00041095,21]
[322124932,1712818247027,-500.0,0.00041095,21]
[322124933,1712818247036,-500.0,0.00041095,21]
[322124934,1712818247045,-502.1336035,0.00041095,21]
[322124935,1712818247055,-501.28982494,0.00041095,21]
[322124936,1712818247065,-500.0,0.00041095,21]
[322124937,1712818247074,-500.0,0.00041095,21]
[322124938,1712818247084,-500.0,0.00041095,21]
[322124939,1712818247093,-500.0,0.00041095,21]
[322124940,1712818247102,-500.0,0.00041095,21]
[322124941,1712818247112,-1941.82,0.00041095,21]
[322124942,1712818247121,-1941.82,0.00041095,21]
[322124943,1712818247129,-1941.82,0.00041095,21]
[322124944,1712818247139,-1941.82,0.00041095,21]
[322124945,1712818247148,-1941.82,0.00041095,21]
[322124946,1712818247157,-1941.82,0.00041095,21]
[322124947,1712818247167,-1941.82,0.00041095,21]
[322124948,1712818247176,-1941.82,0.00041095,21]
[322124949,1712818247186,-1941.82,0.00041095,21]
[322124950,1712818247195,-280.32793228,0.00041095,21]
[322124951,1712818247204,-500.0,0.00041095,21]
[322124952,1712818247214,-500.0,0.00041095,21]
[322124953,1712818247223,-500.0,0.00041095,21]
[322124954,1712818247232,-500.71121426,0.00041095,21]
[322124955,1712818247241,-502.84602659,0.00041095,21]
[322124956,1712818247251,-502.89314637,0.00041095,21]
[322124957,1712818247260,-501.65817944,0.00041095,21]
[322124958,1712818247268,-500.0,0.00041095,21]
[322124959,1712818247277,-500.0,0.00041095,21]
[322124960,1712818247287,-500.0,0.00041095,21]
[322124961,1712818247297,-504.80079252,0.00041095,21]
[322124962,1712818247306,-200.35160402,0.00041095,21]
[322124963,1712818247315,-500.0,0.00041095,21]
[322124964,1712818247324,-500.0,0.00041095,21]
[322124965,1712818247334,-500.7701377,0.00041095,21]
[322124966,1712818247343,-507.86226408,0.00041095,21]
[322124967,1712818247353,-500.0,0.00041095,21]
[322124968,1712818247362,-500.0,0.00041095,21]
[322124969,1712818247371,-501.82155502,0.00041095,21]
[322124970,1712818247381,-502.79978275,0.00041095,21]
[322124971,1712818247391,-500.0,0.00041095,21]
[322124972,1712818247400,-500.0,0.00041095,21]
[322124973,1712818247410,-500.0,0.00041095,21]
[322124974,1712818247419,-501.41705959,0.00041095,21]
[322124975,1712818247430,-500.0,0.00041095,21]
[322124976,1712818247439,-500.0,0.00041095,21]
[322124977,1712818247449,-500.0,0.00041095,21]
[322124978,1712818247458,-500.0,0.00041095,21]
[322124979,1712818247533,-502.29009757,0.00041095,21]
[322124980,1712818247542,-500.0,0.00041095,21]
[322124981,1712818247551,-500.0,0.00041095,21]
[322124982,1712818247561,-413.58475966,0.00041095,21]
[322124983,1712818247570,-500.0,0.00041095,21]
[322124984,1712818247579,-501.4725826,0.00041095,21]
[322124985,1712818247587,-500.0,0.00041095,21]
[322124986,1712818247598,-238.57246609,0.00041095,21]
[322124987,1712818247607,-501.36707101,0.00041095,21]
[322124988,1712818247616,-507.55405997,0.00041095,21]
[322124989,1712818247626,-500.0,0.00041095,21]
[322124990,1712818247635,-501.26573573,0.00041095,21]
[322124991,1712818247644,-500.0,0.00041095,21]
[322124992,1712818247653,-500.0,0.00041095,21]
[322124993,1712818247662,-500.0,0.00041095,21]
[322124994,1712818247671,-500.0,0.00041095,21]
[322124995,1712818247680,-500.0,0.00041095,21]
[322124996,1712818247690,-500.0,0.00041095,21]
[322124997,1712818247699,-501.28021417,0.00041095,21]
[322124998,1712818247708,-501.30619569,0.00041095,21]
[322124999,1712818247718,-500.0,0.00041095,21]
[322125000,1712818247726,-503.71026125,0.00041095,21]
[322125001,1712818247736,-500.0,0.00041095,21]
[322125002,1712818247746,-863.47,0.00041095,21]
[322125003,1712818247755,-500.0,0.00041095,21]
[322125004,1712818247764,-500.0,0.00041095,21]
[322125005,1712818247773,-500.0,0.00041095,21]
[322125006,1712818247782,-500.0,0.00041095,21]
[322125007,1712818247791,-493.13874538,0.00041095,21]
[322125008,1712818247800,-500.0,0.00041095,21]
[322125009,1712818247809,-501.74416982,0.00041095,21]
[322125010,1712818247818,-500.0,0.00041095,21]
[322125011,1712818247828,-501.83448693,0.00041095,21]
[322125012,1712818247838,-500.0,0.00041095,21]
[322125013,1712818247848,-500.0,0.00041095,21]
[322125014,1712818247857,-500.0,0.00041095,21]
[322125015,1712818247867,-501.89465856,0.00041095,21]
[322125016,1712818247876,-501.66223372,0.00041095,21]
[322125017,1712818247886,-504.50879397,0.00041095,21]
[322125018,1712818247895,-502.2496843,0.00041095,21]
[322125019,1712818247905,-605.77,0.00041095,21]
[322125020,1712818247914,-500.0,0.00041095,21]
[322125021,1712818247923,-1086.34,0.00041095,21]
[322125022,1712818247932,-488.2404238,0.00041095,21]
[322125023,1712818247942,-502.77541635,0.00041095,21]
[322125024,1712818247951,-500.0,0.00041095,21]
[322125025,1712818247960,-500.0,0.00041095,21]
[322125026,1712818247969,-500.0,0.00041095,21]
[322125027,1712818247978,-500.0,0.00041095,21]
[322125028,1712818247987,-500.0,0.00041095,21]
[322125029,1712818247996,-500.0,0.00041095,21]
[322125030,1712818248006,-522.45696122,0.00041095,21]
[322125031,1712818248015,-500.0,0.00041095,21]
[322125032,1712818248025,-501.26145236,0.00041095,21]
[322125033,1712818248036,-500.0,0.00041095,21]
[322125034,1712818248046,-448.71045399,0.00041095,21]
[322125035,1712818248055,-500.0,0.00041095,21]
[322125036,1712818248064,-500.0,0.00041095,21]
[322125037,1712818248072,-500.0,0.00041095,21]
[322125038,1712818248081,-500.0,0.00041095,21]
[322125039,1712818248090,-500.0,0.00041095,21]
[322125040,1712818248099,-500.0,0.00041095,21]
[322125041,1712818248109,-502.12018911,0.00041095,21]
[322125042,1712818248118,-788.0,0.00041095,21]
[322125043,1712818248126,-500.0,0.00041095,21]
[322125044,1712818248135,-500.0,0.00041095,21]
[322125045,1712818248144,-500.0,0.00041095,21]
[322125046,1712818248152,-500.0,0.00041095,21]
[322125047,1712818248162,-594.97978435,0.00041095,21]
[322125048,1712818248170,-576.88551482,0.00041095,21]
[322125049,1712818248180,-500.0,0.00041095,21]
[322125050,1712818248189,-2666.55,0.00041095,21]
[322125051,1712818248197,-500.0,0.00041095,21]
[322125052,1712818248206,-500.0,0.00041095,21]
[322125053,1712818248215,-1706.77,0.00041095,21]
[322125054,1712818248224,-500.0,0.00041095,21]
[322125055,1712818248233,-500.0,0.00041095,21]
[322125056,1712818248241,-500.0,0.00041095,21]
[322125057,1712818248250,-206.99779843,0.00041095,21]
[322125058,1712818248259,-500.0,0.00041095,21]
[322125059,1712818248268,-500.0,0.00041095,21]
[322125060,1712818248276,-641.03013627,0.00041095,21]
[322125061,1712818248285,-501.81288889,0.00041095,21]
[322125062,1712818248294,-500.0,0.00041095,21]
[322125063,1712818248303,-500.0,0.00041095,21]
[322125064,1712818248311,-503.13324321,0.00041095,21]
[322125065,1712818248320,-5625.77,0.00041095,21]
[322125066,1712818248329,-500.0,0.00041095,21]
[322125067,1712818248337,-500.0,0.00041095,21]
[322125068,1712818248346,-500.0,0.00041095,21]
[322125069,1712818248356,-500.0,0.00041095,21]
[322125070,1712818248364,-503.94666909,0.00041095,21]
[322125071,1712818248373,-500.0,0.00041095,21]
[322125072,1712818248382,-500.0,0.00041095,21]
[322125073,1712818248391,-500.0,0.00041095,21]
[322125074,1712818248400,-500.0,0.00041095,21]
[322125075,1712818248408,-500.0,0.00041095,21]
[322125076,1712818248417,-500.0,0.00041095,21]
[322125077,1712818248426,-500.0,0.00041095,21]
[322125078,1712818248434,-503.78485248,0.00041095,21]
[322125079,1712818248443,-500.0,0.00041095,21]
[322125080,1712818248452,-500.0,0.00041095,21]
[322125081,1712818248461,-500.0,0.00041095,21]
[322125082,1712818248469,-500.0,0.00041095,21]
[322125083,1712818248478,-500.0,0.00041095,21]
[322125084,1712818248491,-500.0,0.00041095,21]
[322125085,1712818248500,-502.58407541,0.00041095,21]
[322125086,1712818248508,-500.0,0.00041095,21]
[322125087,1712818248517,-590.8956172,0.00041095,21]
[322125088,1712818248526,-500.0,0.00041095,21]
[322125089,1712818248535,-500.0,0.00041095,21]
[322125090,1712818248544,-1008.73846354,0.00041095,21]
[322125091,1712818248553,-502.17431646,0.00041095,21]
[322125092,1712818248562,-500.0,0.00041095,21]
[322125093,1712818248571,-500.0,0.00041095,21]
[322125094,1712818248580,-501.40250324,0.00041095,21]
[322125095,1712818248589,-500.0,0.00041095,21]
[322125096,1712818248599,-500.0,0.00041095,21]
[322125097,1712818248608,-521.04863938,0.00041095,21]
[322125098,1712818248617,-500.0,0.00041095,21]
[322125099,1712818248626,-501.86450971,0.00041095,21]
[322125100,1712818248636,-410.82351968,0.00041095,21]
[322125101,1712818248645,-501.85137152,0.00041095,21]
[322125102,1712818248654,-500.0,0.00041095,21]
[322125103,1712818248664,-500.0,0.00041095,21]
[322125104,1712818248673,-500.0,0.00041095,21]
[322125105,1712818248682,-500.0,0.00041095,21]
[322125106,1712818248692,-500.71709347,0.00041095,21]
[322125107,1712818248702,-300.0,0.00041095,7]
[322125108,1712818248711,-364.7349128,0.00041095,21]
[322125109,1712818248721,-516.66308847,0.00041095,21]
[322125110,1712818248730,-502.27032178,0.00041095,21]
[322125111,1712818248739,-1230.53,0.00041095,21]
[322125112,1712818248748,-500.0,0.00041095,21]
[322125113,1712818248757,-500.0,0.00041095,21]
[322125114,1712818248766,-500.0,0.00041095,21]
[322125115,1712818248777,-500.0,0.00041095,21]
[322125116,1712818248786,-500.0,0.00041095,21]
[322125117,1712818248795,-505.36741741,0.00041095,21]
[322125118,1712818248805,-500.0,0.00041095,21]
[322125119,1712818248814,-5949.03,0.00041095,21]
[322125120,1712818248823,-501.75692469,0.00041095,21]
[322125121,1712818248832,-500.0,0.00041095,21]
[322125122,1712818248844,-500.0,0.00041095,21]
[322125123,1712818248853,-500.0,0.00041095,21]
[322125124,1712818248862,-793.38,0.00041095,21]
[322125125,1712818248871,-500.0,0.00041095,21]
[322125126,1712818248881,-500.0,0.00041095,21]
[322125127,1712818248890,-157.51388772,0.00041095,21]
[322125128,1712818248900,-941.27,0.00041095,21]
[322125129,1712818248909,-501.0821499,0.00041095,21]
[322125130,1712818248919,-500.0,0.00041095,21]
[322125131,1712818249031,-500.0,0.00041095,21]
[322125132,1712818249052,-500.0,0.00041095,21]
[322125133,1712818249062,-500.0,0.00041095,21]
[322125134,1712818249071,-500.0,0.00041095,21]
[322125135,1712818249082,-1473.94,0.00041095,21]
[322125136,1712818249091,-500.0,0.00041095,21]
[322125137,1712818249102,-500.0,0.00041095,21]
[322125138,1712818249112,-500.0,0.00041095,21]
[322125139,1712818249121,-6681.36,0.00041095,21]
[322125140,1712818249131,-503.58257143,0.00041095,21]
[322125141,1712818249140,-500.0,0.00041095,21]
[322125142,1712818249151,-500.0,0.00041095,21]
[322125143,1712818249160,-500.0,0.00041095,21]
[322125144,1712818249170,-500.0,0.00041095,21]
[322125145,1712818249179,-500.0,0.00041095,21]
[322125146,1712818249190,-500.0,0.00041095,21]
[322125147,1712818249200,-500.0,0.00041095,21]
[322125148,1712818249209,-500.0,0.00041095,21]
[322125149,1712818249218,-160.08660903,0.00041095,2]
[322125150,1712818249227,-500.0,0.00041095,21]
[322125151,1712818249236,-500.0,0.00041095,21]
[322125152,1712818249246,-500.0,0.00041095,21]
[322125153,1712818249255,-500.0,0.00041095,21]
[322125154,1712818249264,-500.53610966,0.00041095,21]
[322125155,1712818249273,-502.83427055,0.00041095,21]
[322125156,1712818249282,-504.39479272,0.00041095,21]
[322125157,1712818249291,-506.48095644,0.00041095,21]
[322125158,1712818249300,-500.44092489,0.00041095,21]
[322125159,1712818249310,-503.61968857,0.00041095,21]
[322125160,1712818249319,-505.26516391,0.00041095,21]
[322125161,1712818249329,-500.0,0.00041095,21]
[322125162,1712818249338,-500.0,0.00041095,21]
[322125163,1712818249348,-500.0,0.00041095,21]
[322125164,1712818249356,-500.0,0.00041095,21]
[322125165,1712818249365,-500.0,0.00041095,21]
[322125166,1712818249374,-500.0,0.00041095,21]
[322125167,1712818249383,-500.0,0.00041095,21]
[322125168,1712818249393,-500.0,0.00041095,21]
[322125169,1712818249402,-502.69860748,0.00041095,21]
[322125170,1712818249411,-500.0,0.00041095,21]
[322125171,1712818249420,-509.45213474,0.00041095,21]
[322125172,1712818249429,-500.0,0.00041095,21]
[322125173,1712818249438,-500.0,0.00041095,21]
[322125174,1712818249447,-501.00250375,0.00041095,21]
[322125175,1712818249457,-500.0,0.00041095,21]
[322125176,1712818249465,-500.0,0.00041095,21]
[322125177,1712818249475,-502.49390456,0.00041095,21]
[322125178,1712818249486,-500.0,0.00041095,21]
[322125179,1712818249495,-500.0,0.00041095,21]
[322125180,1712818249504,-500.0,0.00041095,21]
[322125181,1712818249513,-1232.8915164,0.00041096,7]
[322125182,1712818249523,-177.6077017,0.00041096,2]
[322125183,1712818249533,-500.0,0.00041096,7]
[322125184,1712818249543,-500.0,0.00041096,7]
[322125185,1712818249552,-467.93507688,0.00041096,7]
[322125186,1712818249563,-500.0,0.00041096,7]
[322125187,1712818249572,-153.0,0.00041278,2]
[322125188,1712818249581,-503.56928216,0.00041369,21]
[322125189,1712818249590,-501.71069352,0.00041369,21]
[322125190,1712818249601,-506.49520735,0.00041369,21]
[322125191,1712818249610,-500.0,0.00041369,21]
[322125192,1712818249618,-500.0,0.00041369,21]
[322125193,1712818249627,-437.83133147,0.00041369,21]
[322125194,1712818249636,-505.0,0.00041369,21]
[322125195,1712818249646,-291.13469965,0.00041369,21]
[322125196,1712818249655,-500.0,0.00041369,21]
[322125197,1712818249664,-500.9254283,0.00041369,21]
[322125198,1712818249673,-467.0087534,0.00041369,21]
[322125199,1712818249682,-503.23930922,0.00041369,21]
[322125200,1712818249692,-343.17270435,0.00041369,21]
[322125201,1712818249702,-500.0,0.00041369,21]
[322125202,1712818249711,-500.0,0.00041369,21]
[322125203,1712818249720,-500.0,0.00041369,21]
[322125204,1712818249729,-500.0,0.00041369,21]
[322125205,1712818249739,-500.0,0.00041369,21]
[322125206,1712818249748,-500.0,0.00041369,21]
[322125207,1712818249760,-500.0,0.00041369,21]
[322125208,1712818249770,-500.0,0.00041369,21]
[322125209,1712818249781,-605.41829465,0.00041369,21]
[322125210,1712818249790,-500.0,0.00041369,21]
[322125211,1712818249799,-500.0,0.00041369,21]
[322125212,1712818249809,-500.0,0.00041369,21]
[322125213,1712818249818,-500.0,0.00041369,21]
[322125214,1712818249827,-500.0,0.00041369,21]
[322125215,1712818249837,-500.0,0.00041369,21]
[322125216,1712818249848,-500.0,0.00041369,21]
[322125217,1712818249857,-500.0,0.00041369,21]
[322125218,1712818249866,-501.47206901,0.00041369,21]
[322125219,1712818249876,-152.44482242,0.00041369,21]
[322125220,1712818249885,-500.0,0.00041369,21]
[322125221,1712818249895,-500.0,0.00041369,21]
[322125222,1712818249905,-499.99325314,0.00041369,21]
[322125223,1712818249914,-500.0,0.00041369,21]
[322125224,1712818249923,-500.0,0.00041369,21]
[322125225,1712818249933,-500.0,0.00041369,21]
[322125226,1712818249943,-500.0,0.00041369,21]
[322125227,1712818249953,-501.88845387,0.00041369,21]
[322125228,1712818249962,-500.0,0.00041369,21]
[322125229,1712818249972,-502.37461869,0.00041369,21]
[322125230,1712818249981,-500.0,0.00041369,21]
[322125231,1712818249991,-504.09434844,0.00041369,21]
[322125232,1712818250000,-500.0,0.00041369,21]
[322125233,1712818250010,-579.46304835,0.00041369,21]
[322125234,1712818250019,-500.0,0.00041369,21]
[322125235,1712818250029,-500.0,0.00041369,21]
[322125236,1712818250038,-227.52141825,0.00041369,21]
[322125237,1712818250048,-500.0,0.00041369,21]
[322125238,1712818250058,-500.0,0.00041369,21]
[322125239,1712818250067,-500.0,0.00041369,21]
[322125240,1712818250077,-502.40497176,0.00041369,21]
[322125241,1712818250086,-478.89071637,0.00041369,21]
[322125242,1712818250098,-500.0,0.00041369,21]
[322125243,1712818250108,-501.25580502,0.00041369,21]
[322125244,1712818250119,-504.56730367,0.00041369,21]
[322125245,1712818250128,-573.89650599,0.00041369,21]
[322125246,1712818250138,-500.64519832,0.00041369,21]
[322125247,1712818250149,-500.0,0.00041369,21]
[322125248,1712818250158,-500.0,0.00041369,21]
[322125249,1712818250168,-503.41125147,0.00041369,21]
[322125250,1712818250178,-500.0,0.00041369,21]
[322125251,1712818250187,-500.0,0.00041369,21]
[322125252,1712818250197,-501.35682496,0.00041369,21]
[322125253,1712818250206,-500.0,0.00041369,21]
[322125254,1712818250216,-500.0,0.00041369,21]
[322125255,1712818250225,-500.0,0.00041369,21]
[322125256,1712818250235,-502.84228291,0.00041369,21]
[322125257,1712818250244,-185.84393006,0.00041369,21]
[322125258,1712818250253,-503.70063523,0.00041369,21]
[322125259,1712818250263,-503.02734335,0.00041369,21]
[322125260,1712818250272,-502.0864939,0.00041369,21]
[322125261,1712818250281,-500.82561834,0.00041369,21]
[322125262,1712818250291,-503.94796914,0.00041369,21]
[322125263,1712818250300,-502.74638052,0.00041369,21]
[322125264,1712818250310,-500.98179504,0.00041369,21]
[322125265,1712818250319,-573.22741759,0.00041369,21]
[322125266,1712818250328,-583.33,0.00041369,21]
[322125267,1712818250337,-500.0,0.00041369,21]
[322125268,1712818250349,-503.36173929,0.00041369,21]
[322125269,1712818250358,-502.48943605,0.00041369,21]
[322125270,1712818250367,-500.0,0.00041369,21]
[322125271,1712818250377,-500.0,0.00041369,21]
[322125272,1712818250456,-500.0,0.00041369,21]
[322125273,1712818250466,-505.20190021,0.00041369,21]
[322125274,1712818250476,-500.0,0.00041369,21]
[322125275,1712818250488,-500.0,0.00041369,21]
[322125276,1712818250497,-647.18184354,0.00041369,21]
[322125277,1712818250506,-164.53636416,0.00041369,21]
[322125278,1712818250516,-500.0,0.00041369,21]
[322125279,1712818250526,-226.75301595,0.00041369,21]
[322125280,1712818250535,-500.0,0.00041369,21]
[322125281,1712818250544,-500.0,0.00041369,21]
[322125282,1712818250553,-500.0,0.00041369,21]
[322125283,1712818250563,-500.0,0.00041369,21]
[322125284,1712818250574,-500.0,0.00041369,21]
[322125285,1712818250583,-500.0,0.00041369,21]
[322125286,1712818250592,-500.0,0.00041369,21]
[322125287,1712818250602,-504.27041406,0.00041369,21]
[322125288,1712818250611,-501.41495036,0.00041369,21]
[322125289,1712818250620,-504.55475943,0.00041369,21]
[322125290,1712818250629,-500.0,0.00041369,21]
[322125291,1712818250639,-500.0,0.00041369,21]
[322125292,1712818250648,-500.0,0.00041369,21]
[322125293,1712818250657,-500.0,0.00041369,21]
[322125294,1712818250666,-502.49965639,0.00041369,21]
[322125295,1712818250676,-500.0,0.00041369,21]
[322125296,1712818250686,-500.0,0.00041369,21]
[322125297,1712818250695,-500.0,0.00041369,21]
[322125298,1712818250704,-501.43905989,0.00041369,21]
[322125299,1712818250714,-563.04735117,0.00041369,21]
[322125300,1712818250723,-500.0,0.00041369,21]
[322125301,1712818250732,-500.0,0.00041369,21]
[322125302,1712818250741,-500.0,0.00041369,21]
[322125303,1712818250751,-513.93470398,0.00041369,21]
[322125304,1712818250760,-501.22974984,0.00041369,21]
[322125305,1712818250769,-500.0,0.00041369,21]
[322125306,1712818250779,-500.0,0.00041369,21]
[322125307,1712818250788,-500.0,0.00041369,21]
[322125308,1712818250797,-500.0,0.00041369,21]
[322125309,1712818250806,-507.01519273,0.00041369,21]
[322125310,1712818250815,-503.41974882,0.00041369,21]
[322125311,1712818250824,-504.96047016,0.00041369,21]
[322125312,1712818250834,-504.04540371,0.00041369,21]
[322125313,1712818250843,-510.6530905,0.00041369,21]
[322125314,1712818250853,-504.1062409,0.00041369,21]
[322125315,1712818250862,-504.48243339,0.00041369,21]
[322125316,1712818250872,-503.13616977,0.00041369,21]
[322125317,1712818250881,-500.0,0.00041369,21]
[322125318,1712818250891,-500.0,0.00041369,21]
[322125319,1712818250900,-504.9111778,0.00041369,21]
[322125320,1712818250909,-500.0,0.00041369,21]
[322125321,1712818250918,-500.0,0.00041369,21]
[322125322,1712818250928,-500.0,0.00041369,21]
[322125323,1712818250937,-500.0,0.00041369,21]
[322125324,1712818250947,-500.0,0.00041369,21]
[322125325,1712818250955,-500.0,0.00041369,21]
[322125326,1712818250964,-428.44114347,0.00041369,21]
[322125327,1712818250974,-500.0,0.00041369,21]
[322125328,1712818250983,-501.6259047,0.00041369,21]
[322125329,1712818250993,-501.74077231,0.00041369,21]
[322125330,1712818251002,-503.44931939,0.00041369,21]
[322125331,1712818251011,-500.0,0.00041369,21]
[322125332,1712818251021,-500.0,0.00041369,21]
[322125333,1712818251030,-500.0,0.00041369,21]
[322125334,1712818251039,-500.0,0.00041369,21]
[322125335,1712818251049,-500.0,0.00041369,21]
[322125336,1712818251058,-297.1663235,0.00041369,21]
[322125337,1712818251068,-500.0,0.00041369,21]
[322125338,1712818251078,-500.0,0.00041369,21]
[322125339,1712818251097,-500.0,0.00041369,21]
[322125340,1712818251108,-500.0,0.00041369,21]
[322125341,1712818251118,-501.91332949,0.00041369,21]
[322125342,1712818251128,-500.0,0.00041369,21]
[322125343,1712818251138,-503.76582059,0.00041369,21]
[322125344,1712818251148,-500.0,0.00041369,21]
[322125345,1712818251158,-500.0,0.00041369,21]
[322125346,1712818251167,-500.0,0.00041369,21]
[322125347,1712818251178,-500.0,0.00041369,21]
[322125348,1712818251188,-500.0,0.00041369,21]
[322125349,1712818251198,-506.0416345,0.00041369,21]
[322125350,1712818251207,-500.0,0.00041369,21]
[322125351,1712818251217,-500.0,0.00041369,21]
[322125352,1712818251226,-500.0,0.00041369,21]
[322125353,1712818251236,-500.0,0.00041369,21]
[322125354,1712818251247,-393.3530603,0.00041369,21]
[322125355,1712818251257,-301.18602653,0.00041369,21]
[322125356,1712818251267,-500.0,0.00041369,21]
[322125357,1712818251277,-863.47,0.00041369,21]
[322125358,1712818251286,-500.0,0.00041369,21]
[322125359,1712818251296,-500.0,0.00041369,21]
[322125360,1712818251306,-500.0,0.00041369,21]
[322125361,1712818251315,-41.15679646,0.00041369,21]
[322125499,1712819438191,-159.29370588,0.00023861,2]
[322125501,1712819438200,-1494.03785259,0.00023957,2]
[322125503,1712819438210,-326.58964384,0.00023958,2]
[322125505,1712819438220,-154.92253873,0.00023959,2]
[322125507,1712819438230,-191.39948593,0.00023994,2]
[322125509,1712819438239,-475.212596,0.00025002,2]
[322125511,1712819438249,-59008.25304668,0.0002549,2]
[322125513,1712819438258,-24900.0,0.00025491,2]
[322125515,1712819438268,-380.0,0.00025807,2]
[322125517,1712819438277,-493.45565521,0.00026308,3]
[322125519,1712819438286,-5455.68809204,0.000264,9]
[322125521,1712819438298,-300.0,0.00026405,2]
[322125523,1712819438308,-300.0,0.00026405,2]
[322125526,1712819438317,-154.92253873,0.00027,2]
[322125527,1712819438326,-243.4689664,0.00027112,2]
[322125530,1712819438336,-246.63761013,0.00027112,2]
[322125532,1712819438346,-154.98450155,0.00027112,2]
[322125534,1712819438355,-1964.94666504,0.00027112,2]
[322125535,1712819438364,-294.14905566,0.00027112,2]
[322125537,1712819438373,-4823.45509195,0.00027112,2]
[322125539,1712819438383,-254.76511583,0.00027112,2]
[322125542,1712819438393,-1854.38399609,0.00027112,2]
[322125544,1712819438402,-179.64211488,0.00027112,2]
[322125546,1712819438411,-2121.15236818,0.00027112,2]
[322125547,1712819438421,-229.27466344,0.00027112,2]
[322125549,1712819438430,-203.96205847,0.00027112,3]
[322125551,1712819438440,-167.06533239,0.00027112,2]
[322125554,1712819438449,-225.5768185,0.00027112,2]
[322125555,1712819438459,-155.49310918,0.00027112,2]
[322125557,1712819438469,-245.13013663,0.00027112,2]
[322125559,1712819438478,-159.29370585,0.00027117,2]
[322125561,1712819438487,-916.10190537,0.00027297,2]
[322125563,1712819438496,-254.707118,0.00027397,2]
[322125565,1712819438506,-166.666666,0.00027397,2]
[322125567,1712819438515,-216.09685,0.00027397,2]
[322125569,1712819438525,-188.31719846,0.00027938,2]
[322125571,1712819438534,-166.666666,0.00028038,2]
[322125574,1712819438547,-3870.95408549,0.00028372,2]
[322125575,1712819438556,-420.0,0.00028564,2]
[322125578,1712819438566,-166.666666,0.00028679,2]
[322125579,1712819438575,-484.12873589,0.00028769,2]
[322125582,1712819438585,-420.0,0.00029046,2]
[322125583,1712819438594,-166.666666,0.00029321,2]
[322125585,1712819438603,-166.666666,0.00029962,2]
[322125587,1712819438612,-160.92917325,0.00029996,2]
[322125589,1712819438621,-500.0,0.00029999,2]
[322125591,1712819438631,-244.17128127,0.00029999,2]
[322125593,1712819438640,-517.85774888,0.00029999,2]
[322125595,1712819438649,-373.11174098,0.00029999,2]
[322125597,1712819438659,-393.9012656,0.00029999,2]
[322125599,1712819438667,-500.0,0.00029999,2]
[322125601,1712819438676,-500.0,0.00029999,2]
[322125603,1712819438685,-500.0,0.00029999,2]
[322125605,1712819438694,-512.2142868,0.00029999,2]
[322125607,1712819438704,-14700.94956491,0.0003,5]
[322125609,1712819438714,-378.37453911,0.0003,10]